Cogmind - Beta 17.1 @@@ ROGUE MODE // 2026.09.04 @ 13:26:44 Player: mmmmcheese Result: Destroyed by M2-7M0(R) with Subdweller Machine Gun Performance ------------- Evolutions (0) 0 Regions Visited (3) 600 Robots Destroyed (39) 195 Value Destroyed (945) 945 Prototype IDs (0) 0 Alien Tech Used (0) 0 Bonus (0) 0 TOTAL SCORE: 1740 Bonus ------- None Cogmind --------- Core Integrity 0/250 Matter 270/300 Energy 250/250 System Corruption 0% Temperature Cool (0) Movement Rolling (107) Ox1 Location -10/Subcaves Parts ------- > --- POWER (1) -------- Ion Engine > --- PROPULSION (2) --- Wheel Subdweller Monowheel > --- UTILITY (2) ------ Large Storage Unit Sensor Array > --- WEAPON (2) ------- Particle Cannon Makeshift Sword > --- INVENTORY (15) --- Subdweller Power Source Subdweller Monowheel Heat Sink High-capacity Storage Unit Light Armor Plating Light Armor Plating Scrap Shield Hacking Suite Hacking Suite Subdweller Laser Particle Cannon Subdweller Machine Gun Heavy Battle Rifle Missile Launcher Peak State ------------ > --- POWER ------------ Ion Engine > --- PROPULSION ------- Wheel Subdweller Monowheel > --- UTILITY ---------- Large Storage Unit Melee Analysis Suite > --- WEAPON ----------- Particle Cannon Makeshift Sword > --- INVENTORY -------- Subdweller Power Source Subdweller Monowheel Heat Sink High-capacity Storage Unit Sensor Array Light Armor Plating Light Armor Plating Hacking Suite Hacking Suite Subdweller Laser Particle Cannon Subdweller Machine Gun Heavy Battle Rifle Missile Launcher [Rating: 16] Favorites ----------- Power Ion Engine Engine Ion Engine Propulsion Light Treads Treads Light Treads Wheel Wheel Utility Large Storage Unit Device Sensor Array Storage Large Storage Unit Processor Melee Analysis Suite Protection Light Armor Plating Weapon Particle Cannon Energy Gun EM Shotgun Energy Cannon Particle Cannon Ballistic Gun Assault Rifle Launcher Missile Launcher Slashing Weapon Makeshift Sword Build | -11 -10 -10 -10 ------- Run | Yrd Mat Min Sub Slots Evolved . | . . . . Power . | . . . . Propulsion . | . . . . Utility . | . . . . Weapon . | . . . . Parts Attached 30 | 6 13 2 9 Power 3 | 1 2 . . Engine 3 | 1 2 . . Core . | . . . . Reactor . | . . . . Propulsion 8 | 2 2 1 3 Treads 5 | 2 2 1 . Leg . | . . . . Wheel 3 | . . . 3 Hover . | . . . . Flight . | . . . . Utility 9 | 1 4 1 3 Device 2 | . 1 1 . Storage 2 | 1 1 . . Processor 1 | . . . 1 Hackware . | . . . . Protection 4 | . 2 . 2 Artifact . | . . . . Weapon 10 | 2 5 . 3 Energy Gun 2 | . 2 . . Energy Cannon 2 | . 2 . . Ballistic Gun 4 | 2 1 . 1 Ballistic Cannon . | . . . . Launcher 1 | . . . 1 Special Weapon . | . . . . Impact Weapon . | . . . . Slashing Weapon 1 | . . . 1 Piercing Weapon . | . . . . Special Melee Weapon . | . . . . Unidentified Prototypes . | . . . . Parts Lost 3 | . . . 3 Power . | . . . . Propulsion 2 | . . . 2 Utility 1 | . . . 1 Weapon . | . . . . Highest Loss Streak 2 | . . . 2 To Critical Strikes . | . . . . Average Backups 13 | 2 11 14 14 Power . | . 1 1 1 Propulsion 2 | . 3 2 1 Utility 6 | . 3 7 7 Weapon 3 | . 3 4 4 Tool/Special . | . . . . Unused Backups 17 | . 6 1 10 Power 3 | . 1 . 2 Propulsion 1 | . . . 1 Utility 5 | . 1 . 4 Weapon 8 | . 4 1 3 Tool/Special . | . . . . Average Slot Usage (%) 99 | . 97 100 99 Engine 13 | . 13 14 14 Treads 22 | . 28 28 15 Wheel 5 | . . . 12 Device 10 | . 3 14 13 Storage 14 | . 14 14 14 Protection 2 | . 7 . . Energy Gun 1 | . 5 . . Energy Cannon 16 | . 9 17 21 Ballistic Gun 7 | . 13 10 . Launcher 2 | . . . 4 Peak Build Rating 16 | 6 10 11 16 Average Rating 10 | 4 8 10 12 On Entrance 6 | . 6 10 11 Avg Prop Armor Cover (%) 11 | . . . 11 Naked Turns . | . . . . Heaviest Build 38 | 12 36 34 38 Greatest Support 40 | 40 40 40 40 Greatest Overweight (x) 3 | 2 . . 3 Average Overweight (x) . | . . . . Largest Inventory Capacity 15 | 8 15 15 15 Average Capacity 14 | 6 14 15 15 Most Carried 15 | 4 15 15 15 Average Carried 13 | 2 11 14 14 Final Capacity 15 | 8 15 15 15 Final Carried 15 | 4 15 15 15 Class Distribution -------------------- 100% | Mutant Dominant Class ---------------- Mutant | -10/Materials Mutant | -10/Mines Mutant | -10/Subcaves Resources | -11 -10 -10 -10 ----------- Run | Yrd Mat Min Sub Matter Collected 847 | 232 405 30 180 Remotely . | . . . . Salvage Created 1150 | . 808 . 342 Parts 92 | . 69 . 23 Haulers Intercepted 2 | . 2 . . Recyclers Shooed . | . . . . Parts Field Recycled . | . . . . Retrieved Matter . | . . . . Parts Self-Destructed 5 | . . . 5 Prevented . | . . . . Parts Restored . | . . . . Kills | -11 -10 -10 -10 ------- Run | Yrd Mat Min Sub Combat Hostiles Destroyed 32 | . 21 . 11 Melee 2 | . . . 2 Guns 13 | . 11 . 2 Cannons 15 | . 10 . 5 AOE 2 | . . . 2 Classes Destroyed 6 | . 5 . 1 Hauler 2 | . 2 . . Operator 2 | . 2 . . Watcher 3 | . 3 . . Swarmer 12 | . 9 . 3 Grunt 12 | . 12 . . Subdweller 8 | . . . 8 Best Kill Streak 4 | . 4 . 3 Combat Bots Only 4 | . 4 . 3 Max Kills in Single Turn 1 | . 1 . 1 Gunslinging . | . . . . Exploded 1 | . . . 1 Melee 1 | . . . 1 Uniques/NPCs Destroyed . | . . . . Combat | -11 -10 -10 -10 -------- Run | Yrd Mat Min Sub Hostile Shots Fired 136 | . 72 . 64 Missed 33 | . 15 . 18 Hits 103 | . 57 . 46 Projectile 103 | . 57 . 46 Critical Strikes 1 | . 1 . . Damage Taken 1397 | . 580 . 817 Core 263 | . 87 . 176 Absorbed by Shields . | . . . . Core Remaining (%) 100 | 100 . . . Volleys Fired 116 | . 73 . 43 Largest 2 | . 2 . 2 Hottest 136 | . 136 . 136 Shots Fired 222 | . 144 . 78 Gun 108 | . 96 . 12 Cannon 111 | . 48 . 63 Launcher 3 | . . . 3 Special . | . . . . Kinetic 92 | . 80 . 12 Thermal 111 | . 48 . 63 Explosive 3 | . . . 3 Electromagnetic 16 | . 16 . . Robot Hit Streak 15 | . 12 . 15 Robot Miss Streak 6 | . 6 . 5 Penetration Max . | . . . . Secondary Targets . | . . . . Shots Hit Robots 134 | . 83 . 51 Core Hits 54 | . 38 . 16 Critical Kills . | . . . . Critical Parts Destroyed . | . . . . Critical Strikes . | . . . . Melee Attacks 6 | . . . 6 Impact . | . . . . Slashing 6 | . . . 6 Piercing . | . . . . Sneak Attacks . | . . . . Combat Hostiles . | . . . . Follow-up Attacks . | . . . . Damage Inflicted 2697 | . 1327 . 1370 Guns 996 | . 737 . 259 Cannons 1186 | . 553 . 633 Explosions 263 | . . . 263 Melee 215 | . . . 215 Ramming 37 | . 37 . . Kinetic 859 | . 600 . 259 Thermal 1186 | . 553 . 633 Explosive 263 | . . . 263 Electromagnetic 137 | . 137 . . Impact . | . . . . Slashing 215 | . . . 215 Piercing . | . . . . Highest Corruption . | . . . . Average Corruption . | . . . . Corruption Purged . | . . . . Corruption Blocked . | . . . . Overload Shots . | . . . . Overflow Damage . | . . . . Projectiles . | . . . . Explosions . | . . . . Melee . | . . . . Knockbacks . | . . . . Impact . | . . . . Kinetic . | . . . . Secondary . | . . . . Self-Inflicted Damage . | . . . . Shots . | . . . . Rammed 13 | . 13 . . Targets Rammed 13 | . 13 . . Kicked . | . . . . Crushed . | . . . . Highest Temperature 273 | . 273 . 162 Average Temperature 86 | . 94 . 54 Received Heat Transfer 318 | . 231 . 87 Effects 3 | . 3 . . Interference 3 | . 3 . . Siege Activations . | . . . . Martial Activations . | . . . . Shielding Activations . | . . . . Robots Disrupted . | . . . . Combat Hostiles . | . . . . Robots Corrupted . | . . . . Combat Hostiles . | . . . . Parts Fried . | . . . . Impact Corruptions . | . . . . Robots Melted . | . . . . Combat Hostiles . | . . . . Parts Melted 4 | . . . 4 Heat Transferred 2146 | . 999 . 1147 Parts Sabotaged . | . . . . Parts Stolen . | . . . . Parts Stripped . | . . . . Power Chain Reactions . | . . . . Alert | -11 -10 -10 -10 ------- Run | Yrd Mat Min Sub Maximum Alert Level 1 | . 1 . . Low Security (%) 84 | 100 73 100 . Level 1 15 | . 26 . . Level 2 . | . . . . Level 3 . | . . . . Level 4 . | . . . . Level 5 . | . . . . High Security . | . . . . Max Security . | . . . . Peak Influence 249 | . 249 67 . Initial 67 | . . 67 . Average 68 | . 112 6 . Influence Increases 687 | . 617 . 70 Destroy 0b10 Robot/C 480 | . 420 . 60 Destroy 0b10 Robot/NC 35 | . 35 . . Destroy Leader 90 | . 80 . 10 Successful Hack 6 | . 6 . . Destroy Structure 1 | . 1 . . Partial Spotted 15 | . 15 . . Lose Combat Pursuer 60 | . 60 . . Influence Decreases 687 | . 442 175 70 Entered New Map 108 | . . 108 . Time Decay 579 | . 442 67 70 Squads Dispatched 5 | . 4 1 . Investigation 3 | . 2 1 . Extermination . | . . . . Reinforcement 2 | . 2 . . Assault . | . . . . Garrison . | . . . . Intercept . | . . . . Searches Triggered . | . . . . Construction Impeded . | . . . . Haulers Reinforced . | . . . . Active Scanning Responses . | . . . . Cargo Convoy Interrupts . | . . . . Stealth | -11 -10 -10 -10 --------- Run | Yrd Mat Min Sub Distress Signals . | . . . . Communications Jammed . | . . . . Distress Signals . | . . . . Times Spotted 46 | . 35 . 11 Peak Tracking Total 4 | . 4 . 3 Tactical Retreats 4 | . 4 . . Traps | -11 -10 -10 -10 ------- Run | Yrd Mat Min Sub Traps Triggered 3 | . 2 . 1 Indirectly . | . . . . Trap Hack Attempts . | . . . . Triggered . | . . . . Disarmed . | . . . . Reprogrammed . | . . . . Reused . | . . . . Traps Extracted . | . . . . Installed . | . . . . Triggered . | . . . . Machines | -11 -10 -10 -10 ---------- Run | Yrd Mat Min Sub Machines Disabled . | . . . . Max in Single Turn . | . . . . Machines Repaired . | . . . . Machines Dismantled . | . . . . Machines Sabotaged . | . . . . Overloaded Fab Kills . | . . . . Hacking | -11 -10 -10 -10 --------- Run | Yrd Mat Min Sub Machines Accessed 5 | . 2 1 2 Terminals 2 | . 2 . . Fabricators . | . . . . Repair Stations . | . . . . Recycling Units . | . . . . Scanalyzers . | . . . . Garrison Access . | . . . . Total Hacks 10 | . 6 1 3 Successful 7 | . 3 1 3 Failed 3 | . 3 . . Catastrophic . | . . . . Database Lockouts . | . . . . Manual 4 | . 4 . . Terminals 6 | . 6 . . Fabricators . | . . . . Repair Stations . | . . . . Recycling Units . | . . . . Scanalyzers . | . . . . Garrison Access . | . . . . Terminal Hacks 5 | . 1 1 3 Record 1 | . . . 1 Open Door 2 | . . 1 1 Locate Traps 1 | . 1 . . Release Object 1 | . . . 1 Fabricator Hacks . | . . . . Repair Station Hacks . | . . . . Recycling Unit Hacks . | . . . . Scanalyzer . | . . . . Garrison Access Hacks . | . . . . Unauthorized Hacks 2 | . 2 . . Terminals 2 | . 2 . . Botnet 1 | . 1 . . Operators 1 | . 1 . . Fabricators . | . . . . Repair Stations . | . . . . Recycling Units . | . . . . Scanalyzers . | . . . . Garrison Access . | . . . . Data Cores Recovered . | . . . . Used . | . . . . Hacking Detections 2 | . 2 . . Full Trace Events . | . . . . Feedback Events . | . . . . Feedback Blocked . | . . . . Robot Schematics Acquired . | . . . . Robots Built . | . . . . Authchips . | . . . . Time . | . . . . Total Robot Build Rating . | . . . . Part Schematics Acquired . | . . . . Parts Built . | . . . . Authchips . | . . . . Time . | . . . . Total Part Build Rating . | . . . . Part Studies Acquired . | . . . . Parts Repaired . | . . . . Time . | . . . . Parts Recycled . | . . . . Recycled Matter . | . . . . Retrieved Matter . | . . . . Retrieved Components . | . . . . Parts Scanalyzed . | . . . . Part Schematics Acquired . | . . . . Parts Damaged . | . . . . Bothacking | -11 -10 -10 -10 ------------ Run | Yrd Mat Min Sub Used RIF Installer . | . . . . Robots Hacked . | . . . . Non-combat . | . . . . Combat . | . . . . Robot Hacks Applied . | . . . . Relay Couplers Released . | . . . . Fabnet Peak Effective % . | . . . . Robots Rewired . | . . . . Allies Hacked . | . . . . Hacks Repelled . | . . . . Allies | -11 -10 -10 -10 -------- Run | Yrd Mat Min Sub Total Allies . | . . . . Largest Group . | . . . . Highest-Rated Group . | . . . . Highest-Rated Ally . | . . . . Total Orders . | . . . . Ally Attacks . | . . . . Total Damage . | . . . . Kills . | . . . . Allies Corrupted . | . . . . Allies Melted . | . . . . Intel | -11 -10 -10 -10 ------- Run | Yrd Mat Min Sub Active Infowar (turns) 2380 | . . 772 1608 Sensors 2380 | . . 772 1608 Robot Analysis Total . | . . . . Derelict Logs Recovered 3 | . . 2 1 Drone Launches . | . . . . Drone Recoveries . | . . . . Exploration | -11 -10 -10 -10 ------------- Run | Yrd Mat Min Sub Turns Passed 3822 | 91 1259 772 1700 Spaces Moved 1932 | 56 577 459 840 Core 14 | 14 . . . Treads 1598 | 42 577 459 520 Legs . | . . . . Wheels 320 | . . . 320 Hover . | . . . . Flight . | . . . . Fastest Speed 50 | 50 160 160 95 Average Speed 149 | 139 160 160 138 Slowest Speed 160 | 160 160 160 160 Overloaded Moves . | . . . . Propulsion Burnouts . | . . . . Robots Hopped . | . . . . Potential Cave-ins . | . . . . Cave-ins Triggered . | . . . . Exploration Rate (%) 45 | 3 74 60 43 Regions Visited 3 Branch Regions 2 Pre-discovered Areas 2 | . . 1 1 Known Exits Taken . | . . . . Unknown Exits Taken 3 | 1 1 1 . Scrap Searched 1 | . . 1 . Spaces Dug . | . . . . Terrain Destroyed 14 | . . . 14 Melee . | . . . . Projectile . | . . . . AOE 14 | . . . 14 Terrain Rammed . | . . . . Walls Destroyed . | . . . . Machines Disabled . | . . . . Actions | -11 -10 -10 -10 --------- Run | Yrd Mat Min Sub Total 2616 | 66 765 498 1287 Wait 453 | . 51 29 373 Move 1929 | 55 576 458 840 Hop . | . . . . Pick Up 37 | 5 22 4 6 Fast Attach 11 | 5 5 . 1 Attach 11 | 1 5 2 3 Detach 1 | . 1 . . Swap 16 | . 4 1 11 Drop 23 | . 15 4 4 Fire 116 | . 73 . 43 Melee 6 | . . . 6 Ram . | . . . . Kick . | . . . . Crush 13 | . 13 . . Escape Stasis . | . . . . Rewire . | . . . . Trap . | . . . . Miscellaneous . | . . . . Route ------- -11/Scrapyard -10/Materials (discovered 3 exits: [*Mat x2] / *Min) -10/Mines (discovered 2 exits: [*Mat] / *Sub) -10/Subcaves (discovered 1 exit: [*Mat]) History --------- Turn | Location | Event 9 | -11/Scrapyard | Discovered new exit (range 15) 92 | -11/Scrapyard | Entered Materials 325 | -10/Materials | Build established: Mutant 518 | -10/Materials | Discovered new exit (range 15) 883 | -10/Materials | Discovered new exit (range 16) 1139 | -10/Materials | Discovered new exit (range 10) 1351 | -10/Materials | Entered Mines 1408 | -10/Mines | Met a Derelict shopkeep closing up shop 1753 | -10/Mines | Learned Materials emergency access door positions 1809 | -10/Mines | A weapon hastily lodged in a ceiling crevice suddenly fell to the ground 2075 | -10/Mines | Discovered new exit (range 10) 2082 | -10/Mines | Learned location of Zion (-6) 2107 | -10/Mines | Discovered new exit (range 5) 2123 | -10/Mines | Entered Subcaves 2124 | -10/Subcaves | Shifting Twisted Machinery released Mak. System Shield 2124 | -10/Subcaves | Shifting Twisted Machinery released Hvy. Battle Rifle 2342 | -10/Subcaves | Learned Materials emergency access door positions 2444 | -10/Subcaves | Discovered new exit (range 6) 2529 | -10/Subcaves | A swath of the cavern ceiling suddenly collapsed 2972 | -10/Subcaves | Met a Zionite searching for "candidates" 3047 | -10/Subcaves | Ambushed by Subdwellers from Twisted Machinery 3606 | -10/Subcaves | Core integrity fell below 50% 3704 | -10/Subcaves | Core integrity fell below 20% 3823 | -10/Subcaves | Destroyed by M2-7M0(R) with Subdweller Machine Gun Last Messages --------------- 03620_ 5C-M8H(R) affixes Scrap Shield Fragment to Scrap Shield. 03623_ Lgt. Armor Plating destroyed. 03624_ Subatomizers dissect the Sub. Monowheel. 03627_ 5C-M8H(R) affixes Scrap Shield Fragment to Scrap Shield. 03638_ 5C-M8H(R) destroyed. 03642_ Acquired Sub. Monowheel. 03645_ Acquired Sub. Machine Gun. 03647_ Acquired Sub. Monowheel. 03648_ Acquired 36 matter. 03663_ Subatomizers dissect the Sub. Optics. 03707_ NB-53V(R) destroyed. 03711_ 3V-LJA(R) destroyed. 03713_ Acquired 47 matter. 03715_ Acquired 59 matter. 03719_ Discarded Melee Analysis Suite. 03723_ Acquired Scrap Shield. 03734_ Subatomizers dissect the Disposable Heat Sink. Map ----- +----------------------------------------------------+ | ## ## ##???## #?????????????????????????????? | | #???### #???????"?????????????????????? | | ##??# ##???????" ????????????????????? | | "#"# ##?# ##??????? "???????????????????? | | ##### ### ##?????? ""??????????????????? | | #?### ## #?????? """??????????????????? | | #??# #??????#""???????????????????? | | # #??## ##??????#""???????????????????? | | ? ##???### ####??????## #???????????????????? | | ?# #??????## ##?????????# #???????????????????? | | ?? #??????## #??????????# ####????????????????? | | ?? #??????# ##?????????# #????????????????? | | ?? #??????# ##???????## ##????????????????? | | ?? ??????# ####???## #?????????????????? | | ??? ??????### #?### #?????????????????? | | ???????# ### ##?????????????????? | | #??????# #??????????????????? | | #??????# ##??????????????????? | | #??????# # # ##???????????????????? | | # #???????# ## ### #????????????????????? | | ????????????## #####?# #????????????????????? | | ?????????????####????## ##????????????????????? | | ?????????????????????# ##????????????????????? | | ?????????????????????# #????????????????????? | | ?????????????????????#### #????????????????????? | | ??????????????????????## @ ##????????????????????? | | ??????????????????????# #?????????????????????? | | ??????????????????????# #????????? ???????????? | | ??????????????????????# #????????? #??????????? | | ??????????????????????## #?????????? #?????????? | | ???????????????????????# #?????????? ##??????? | | ???????????????????????## ##????????? ??????? | | ????????????????????????# ###???????? #??????? | | ???????????????????????## ##??###### #??????# | | ??????????????????????## #?## ## ##????? | | ??????????????????????# #?# ####?? | | ??????????????????????# ### ### | | ??????????????????????## #?# | | ???????????????????????# ### #?# # | | ???????????????????????##??# ### # | | ??????????????????????????## | | ??????????????????????????# ## | | ??????????????????? # ###### | | ???????????????? ####???####### | | ????????????????? ##??????# ## | | ????????????????? ##???????# # | | ????????????????? ### ##????????# ## | | ????????????????? ????# ##??????????### ##? | | ??????????????????????####??????????????# #?? | | ??????????????????????????????????????### #?? | +----------------------------------------------------+ Best States ------------- Heat Dissipation 35 Energy Generation 10 Energy Capacity 250 Matter Stores 300 Matter Capacity 300 Sight Range 16 Robot Scan Range 14 Terrain Scan Density 10 Armor Coverage 150 Evasion (%) 50 Melee Accuracy 5 Recoil Reduction 2 Item Schematics ----------------- None Robot Schematics ------------------ None Fabricated ------------ Nothing Repaired ---------- Nothing Studied --------- None Alien Tech Used ----------------- None Achievements -------------- None Challenges ------------ None Game ------ Seed BlinkMeleeDriver Manual? 0 Play Time 00:27:44 Cumulative 116.7 hours Start 2026.09.04 @ 13:01:54 End 2026.09.04 @ 13:26:44 Sessions 1 Manual Loads 0 Difficulty Rogue Special Mode None Game No. 58 Rogue 58 Adventurer 0 Explorer 0 Win Type - Total 2 Types 2/0/0/0/0/0/0/0/0/0 Lore% 54 Gallery% 54 Achievement% 53 Wizard Run 0 Options --------- Layout 1 ASCII 0 Keyboard 0 Movement Numpad Keybinds 0 Fullscreen 1 Font 24/Smallcaps Map View 50x35 Zoom Use 0% Tactical HUD 1 Map Filters NONE Filters NONE Steam 1 RUN: 4b007dc8-e01e-4b07-b774-de1f5723418c